fUSD/lending_fUSD_20250926
["ID","MTS","AMOUNT","RATE_DAILY","PERIOD"]
[387832396,1758905434146,-1003.57168808,0.000199,2]
[387832397,1758905434157,-1003.57168808,0.000199,2]
[387832398,1758905434167,-19709.4998,0.000199,2]
[387832399,1758905434178,-158.24766571,0.000199,2]
[387832400,1758905434189,-1261.87163138,0.000199,2]
[387832401,1758905434200,-1003.57168808,0.000199,2]
[387832402,1758905434211,-153.08143758,0.000199,2]
[387832403,1758905434222,-186.442713,0.000199,2]
[387832404,1758905434232,-186.442713,0.00019905,2]
[387832405,1758905434242,-772.94495147,0.00019907,2]
[387832406,1758905434252,-166.44034528,0.0001991,2]
[387832407,1758905434263,-693.73084604,0.0001991,2]
[387832408,1758905434274,-183.57765006,0.00019912,2]
[387832409,1758905434284,-290.51061133,0.00019912,2]
[387832410,1758905434294,-183.57765006,0.00019912,2]
[387832411,1758905434304,-345.62946014,0.00019913,2]
[387832412,1758905434315,-1909.976,0.00019914,2]
[387832413,1758905434325,-200.046,0.00019914,2]
[387832414,1758905434335,-345.62946014,0.00019916,2]
[387832415,1758905434347,-290.51061133,0.00019919,2]
[387832416,1758905434357,-290.51061133,0.00019919,2]
[387832417,1758905434366,-183.57765006,0.0001992,2]
[387832418,1758905434376,-160.88712671,0.00019925,2]
[387832419,1758905434390,-160.88712671,0.00019926,2]
[387832420,1758905434401,-276.66448929,0.00019927,2]
[387832421,1758905434411,-166.44034528,0.00019929,2]
[387832422,1758905434423,-183.57765006,0.00019929,2]
[387832423,1758905434433,-186.442713,0.00019934,2]
[387832424,1758905434443,-1000.0,0.00019937,2]
[387832425,1758905434453,-295.33,0.00019938,2]
[387832426,1758905434464,-772.94495147,0.0001994,2]
[387832427,1758905434474,-290.51061133,0.0001994,2]
[387832428,1758905434484,-186.442713,0.00019948,2]
[387832429,1758905434494,-160.88712671,0.00019949,2]
[387832430,1758905434504,-322.49976175,0.00019949,2]
[387832431,1758905434515,-772.94495147,0.00019951,2]
[387832432,1758905434524,-276.66448929,0.00019952,2]
[387832433,1758905434535,-345.62946014,0.00019955,2]
[387832434,1758905434545,-166.44034528,0.00019956,2]
[387832435,1758905434556,-186.442713,0.00019956,2]
[387832436,1758905434566,-322.49976175,0.00019958,2]
[387832437,1758905434576,-197.52000895,0.00019959,2]
[387832438,1758905434586,-183.57765006,0.00019962,2]
[387832439,1758905434596,-693.73084604,0.00019964,2]
[387832440,1758905434606,-345.62946014,0.00019967,2]
[387832441,1758905434620,-345.62946014,0.00019968,2]
[387832442,1758905434629,-160.88712671,0.00019968,2]
[387832443,1758905434640,-1425.0,0.00019969,2]
[387832444,1758905434649,-345.62946014,0.0001997,2]
[387832445,1758905434659,-500.0,0.00019973,2]
[387832446,1758905434672,-500.0,0.00019973,2]
[387832447,1758905434682,-500.0,0.00019973,2]
[387832448,1758905434692,-500.0,0.00019973,2]
[387832449,1758905434701,-278.07853876,0.00019973,2]
[387832450,1758905434712,-500.0,0.00019973,2]
[387832451,1758905434722,-500.0,0.00019973,2]
[387832452,1758905434732,-345.62946014,0.00019976,2]
[387832453,1758905434743,-276.66448929,0.00019979,2]
[387832454,1758905434753,-290.51061133,0.0001998,2]
[387832455,1758905434763,-166.44034528,0.00019981,2]
[387832456,1758905434772,-183.57765006,0.00019981,2]
[387832457,1758905434782,-183.57765006,0.00019981,2]
[387832458,1758905434792,-160.88712671,0.00019983,2]
[387832459,1758905434802,-160.88712671,0.00019983,2]
[387832460,1758905434812,-1425.0,0.00019985,2]
[387832461,1758905434823,-693.73084604,0.00019987,2]
[387832462,1758905434832,-276.66448929,0.00019988,2]
[387832463,1758905434842,-197.52000895,0.00019989,2]
[387832464,1758905434855,-2043.0,0.0001999,2]
[387832465,1758905434865,-3396.0,0.0001999,2]
[387832466,1758905434874,-1583.0,0.0001999,2]
[387832467,1758905434884,-603.0,0.0001999,2]
[387832468,1758905434894,-1305.0,0.0001999,2]
[387832469,1758905434904,-569.0,0.0001999,2]
[387832470,1758905434915,-814.0,0.0001999,2]
[387832471,1758905434926,-4179.0,0.0001999,2]
[387832472,1758905434936,-728.0,0.0001999,2]
[387832473,1758905434946,-18905.0,0.0001999,2]
[387832474,1758905434956,-166.44034528,0.0001999,2]
[387832475,1758905434966,-276.66448929,0.0001999,2]
[387832476,1758905434976,-772.94495147,0.00019992,2]
[387832477,1758905434986,-322.49976175,0.00019997,2]
[387832478,1758905434996,-64126.29348048,0.00019997,2]
[387832479,1758905435046,-15079.64178137,0.00019997,2]
[387832480,1758905435058,-316.52362598,0.00019997,2]
[387832481,1758905435070,-330.55581015,0.00019997,2]
[387832482,1758905435083,-1751.50534883,0.00019997,2]
[387832483,1758905435095,-646.41720952,0.00019997,2]
[387832484,1758905435134,-17893.38308875,0.00019997,2]
[387832485,1758905435347,-47898.51114013,0.00019997,2]
[387832486,1758905435418,-1117.41460021,0.00019997,2]
[387832487,1758905435431,-1242.05655228,0.00019997,2]
[387832488,1758905435443,-1244.57276902,0.00019997,2]
[387832489,1758905435453,-5000.0,0.00019998,2]
[387832490,1758905435463,-300.0,0.00019999,2]
[387832491,1758905435473,-446.47621105,0.00019999,2]
[387832492,1758905435483,-150.0,0.00019999,2]
[387832493,1758905435492,-150.0,0.00019999,2]
[387832494,1758905435503,-150.0,0.00019999,2]
[387832495,1758905435512,-500.0,0.00019999,2]
[387832496,1758905435522,-500.0,0.00019999,2]
[387832497,1758905435532,-95.68407777,0.00019999,2]
[387832498,1758905435544,-547.73802806,0.00019999,2]
[387832499,1758905435555,-450.57789417,0.00019999,2]
[387832500,1758905435568,-150.0,0.00019999,2]
[387832501,1758905435577,-335.44742538,0.00019999,2]
[387832502,1758905435613,-164.55257462,0.00019999,2]
[387832503,1758905435623,-150.0,0.00019999,2]
[387832504,1758905435633,-387.0731688,0.00019999,2]
[387832505,1758905435644,-401.9268312,0.00019999,2]
[387832506,1758905435654,-150.0,0.00019999,2]
[387832507,1758905435664,-500.0,0.00019999,2]
[387832508,1758905435678,-150.0,0.00019999,2]
[387832509,1758905435687,-995.0,0.00019999,2]
[387832510,1758905435696,-428.0,0.00019999,2]
[387832511,1758905435706,-150.0,0.00019999,2]
[387832512,1758905435717,-3288.2109692,0.00019999,2]
[387832513,1758905435872,-417.42278757,0.00019999,2]
[387832514,1758905435885,-725.95001392,0.00019999,2]
[387832747,1758905442592,151.271199,0.00018402,2]
[387832752,1758905442897,151.271199,0.00018156,2]
[387832753,1758905442955,-151.271199,0.00018649,2]
[387832754,1758905442966,-151.271199,0.00018894,2]
[387832755,1758905442976,-151.271199,0.0001914,2]
[387832756,1758905442987,-151.271199,0.00019389,2]
[387832757,1758905442997,-151.271199,0.00019635,2]
[387832758,1758905443007,-6076.53582572,0.0001999,2]
[387832759,1758905443019,-151.46417428,0.0001999,2]
[387832760,1758905443029,-924.26675132,0.00019999,2]
[387832761,1758905443041,-3021.05781,0.00019999,2]
[387832762,1758905443134,-1491.99493209,0.00019999,2]
[387832763,1758905443144,-500.0,0.00019999,2]
[387832764,1758905443154,-150.0,0.00019999,2]
[387832765,1758905443165,-150.0,0.00019999,2]
[387832766,1758905443175,-150.0,0.00019999,2]
[387832767,1758905443185,-150.0,0.00019999,2]
[387832768,1758905443194,-150.0,0.00019999,2]
[387832769,1758905443204,-200.47199387,0.00019999,2]
[387832770,1758905443213,-500.0,0.00019999,2]
[387832771,1758905443223,-150.0,0.00019999,2]
[387832772,1758905443233,-1977.07699404,0.00019999,2]
[387832773,1758905443363,-428.61941707,0.00019999,2]
[387832774,1758905443562,151.271199,0.00017909,2]
[387832775,1758905443603,-691.20796414,0.00019999,2]
[387832776,1758905443779,151.271199,0.00017857,2]
[387832778,1758905443934,151.271199,0.00017856,2]
[387832779,1758905445118,-166.725401,0.00018647,2]
[387832781,1758905445128,-152.854275,0.00018647,2]
[387832782,1758905445138,-159.908734,0.00018647,2]
[387832783,1758905445147,-159.908734,0.00019142,2]
[387832784,1758905445157,-383.7627429,0.000199,2]
[387832785,1758905445167,-1409.3551151,0.00019999,2]
[387832787,1758905445179,-6409.385949,0.00019999,2]
[387832788,1758905445207,159.908734,0.00017897,2]
[387832789,1758905445250,-362.4463343,0.00019999,2]
[387832791,1758905445335,-157.26,0.000199,2]
[387832792,1758905445345,-34941.50457035,0.00019999,2]
[387832793,1758905445357,-274.74705656,0.0002,2]
[387832794,1758905445367,-950.51451763,0.0002,2]
[387832795,1758905445377,-518.0,0.0002,2]
[387832796,1758905445387,-122632.04731764,0.0002,2]
[387832797,1758905445399,-6648.61340206,0.0002,2]
[387832798,1758905445411,-1459.02453802,0.0002,2]
[387832799,1758905445452,-258.77,0.0002,2]
[387832800,1758905445464,-732.68873425,0.0002,2]
[387832801,1758905445625,-297.34588502,0.0002,2]
[387832802,1758905445636,-251.37,0.0002,2]
[387832803,1758905445648,-595.41348269,0.0002,2]
[387832804,1758905445660,-2588.482477,0.0002,2]
[387832805,1758905445718,-228778.35476943,0.0002,2]
[387832806,1758905445728,-1001537.9399395,0.0002,2]
[387832998,1758905447870,-151.322531,0.00019389,2]
[387833000,1758905447880,-151.322531,0.00019882,2]
[387833002,1758905447890,-227.32757121,0.00019989,2]
[387833007,1758905447929,-129.39995926,0.00019989,2]
[387833008,1758905447939,-620.87473458,0.0002,2]
[387833009,1758905447950,-390.13329956,0.0002,2]
[387833010,1758905447962,-1081.93728588,0.0002,2]
[387833011,1758905447974,-504.99528312,0.0002,2]
[387833012,1758905448015,-782.98580425,0.0002,2]
[387833013,1758905449083,-501.55967769,0.0002,2]
[387833014,1758905449151,-12405.67631946,0.0002,2]
[387833015,1758905451334,-158.105283,0.00019142,2]
[387833016,1758905451344,-158.105283,0.00019389,2]
[387833017,1758905451353,-158.105283,0.00019882,2]
[387833018,1758905451363,-150.0,0.0001999,2]
[387833019,1758905451372,-150.0,0.0001999,2]
[387833020,1758905451382,-4232.0,0.0001999,2]
[387833021,1758905451392,-1479.5441104,0.0002,2]
[387833022,1758905451403,-1327.55,0.0002,2]
[387833023,1758905451603,-151.322531,0.00019142,2]
[387833024,1758905451613,-2416.685039,0.0002,2]
[387833025,1758905451654,-158.105283,0.0001914,2]
[387833026,1758905451664,-4525.45272318,0.0002,2]
[387833027,1758905451680,-7224.99998,0.0002,2]
[387833028,1758905453061,151.322531,0.00018402,2]
[387833029,1758905453102,158.105283,0.00018402,2]
[387833030,1758905453193,151.322531,0.00018401,2]
[387833031,1758905453290,158.105283,0.00018401,2]
[387833032,1758905453381,151.322531,0.00018156,2]
[387833033,1758905453489,158.105283,0.00018156,2]
[387833034,1758905453554,151.322531,0.00017909,2]
[387833035,1758905453725,158.105283,0.00017909,2]
[387833036,1758905453801,151.322531,0.00017859,2]
[387833037,1758905454048,158.105283,0.00017859,2]
[387833038,1758905454309,158.105283,0.00017857,2]
[387833039,1758905454413,151.322531,0.00017857,2]
[387833040,1758905454601,151.322531,0.00017852,2]
[387833041,1758905455259,158.105283,0.00017852,2]
[387833042,1758905719705,5185.565543,0.0001755,10]
[387833043,1758905919763,151.867876,0.00018402,2]
[387833044,1758905920477,151.867876,0.00018401,2]
[387833045,1758905921289,151.867876,0.00018156,2]
[387833046,1758905921550,151.867876,0.00018156,2]
[387833047,1758905921860,151.867876,0.00017909,2]
[387833048,1758905922152,151.867876,0.00017897,2]
[387833049,1758905923137,151.867876,0.00017859,2]
[387833050,1758905923497,151.322531,0.00017897,2]
[387833051,1758905923552,151.867876,0.00017857,2]
[387833052,1758905923843,151.867876,0.00017857,2]
[387833053,1758905924314,151.867876,0.00017852,2]
[387833054,1758905924763,151.867876,0.00017719,2]
[387833055,1758905925203,158.105283,0.00017897,2]
[387833056,1758905929504,312.63153639,0.000301,120]
[387833057,1758905940570,493.0,0.00030137,120]
[387833058,1758905956962,250.0,0.00015,2]
[387833061,1758906068888,-150.0,0.00018561,7]
[387833062,1758906068909,-43.1116218,0.00018573,2]
[387833063,1758906071435,-348.86530691,0.00018573,2]
[387833064,1758906080577,150.0,0.000181,2]
[387833066,1758906214127,500.0,0.00030136,120]
[387833067,1758906235617,179.92,9.364e-05,2]
[387833068,1758906235895,179.92,0.00011704,2]
[387833069,1758906236319,179.92,0.00014045,2]
[387833070,1758906236742,179.92,0.00016386,2]
[387833071,1758906237033,17110.70330834,0.00018,2]
[387833072,1758906315101,150.0,0.00018,2]
[387833073,1758906317709,150.0,0.00018,2]
[387833074,1758906317832,150.0,0.00018,2]
[387833075,1758906320986,150.0,0.00018,2]
[387833076,1758906323756,277.31598177,0.00018,2]
[387833077,1758906323866,150.0,0.00018,2]
[387833078,1758906334099,150.0,0.00018,2]
[387833079,1758906334716,153.6528663,0.00018,2]
[387833080,1758906337339,150.0,0.00018,2]
[387833090,1758906607885,150.0,0.000171,2]
[387833091,1758906608261,150.0,0.0001828,2]
[387833177,1758906632789,-526.89,0.00018585,2]
[387833179,1758906632798,-85.42131968,0.00018585,2]
[387833181,1758906632810,-64.57868032,0.00018585,2]
[387833183,1758906632819,-846.36584968,0.00018585,2]
[387833186,1758906632831,-153.63415032,0.00018585,2]
[387833188,1758906632841,-201.21621074,0.00018587,2]
[387833192,1758906632873,-425.25589543,0.00018587,2]
[387833194,1758906632885,-389.23946409,0.00018587,2]
[387833196,1758906632896,-599.19000001,0.00018587,2]
[387833203,1758906632957,-385.09842973,0.00018587,2]
[387833205,1758906632968,-300.00740602,0.00018587,2]
[387833208,1758906632980,-289.96440231,0.00018587,2]
[387833217,1758906633071,-339.01560431,0.00018587,2]
[387833222,1758906633106,-271.01258736,0.00018587,2]
[387833223,1758906633116,-300.0,0.00018588,2]
[387833225,1758906633125,-300.0,0.00018589,2]
[387833226,1758906633134,-255.0,0.00018589,2]
[387833227,1758906633143,-300.0,0.00018589,2]
[387833228,1758906633153,-300.0,0.00018589,2]
[387833229,1758906633163,-300.0,0.00018589,2]
[387833230,1758906633172,-500.0,0.0001859,2]
[387833231,1758906633181,-500.0,0.0001859,2]
[387833232,1758906633191,-500.0,0.0001859,2]
[387833234,1758906633200,-500.0,0.0001859,2]
[387833235,1758906633210,-500.0,0.0001859,2]
[387833237,1758906633220,-500.0,0.0001859,2]
[387833239,1758906633229,-500.0,0.0001859,2]
[387833241,1758906633238,-500.0,0.0001859,2]
[387833243,1758906633248,-500.0,0.0001859,2]
[387833245,1758906633258,-291.01499761,0.0001859,2]
[387833252,1758906633319,-208.98500239,0.0001859,2]
[387833254,1758906633329,-432.29512654,0.0001859,2]
[387833256,1758906633338,-207.56,0.00018612,2]
[387833258,1758906633347,-3004.23,0.00018623,2]
[387833260,1758906633357,-250.0,0.00018637,2]
[387833262,1758906633366,-822.43,0.00018663,2]
[387833264,1758906633376,-2122.86,0.00018679,2]
[387833266,1758906633385,-179.92,0.00018727,2]
[387833268,1758906633395,-225.26,0.00018749,2]
[387833270,1758906633405,-184.54,0.0001878,2]
[387833272,1758906633415,-994.14,0.00018783,2]
[387833274,1758906633424,-300.0,0.0001881,2]
[387833276,1758906633434,-1024.41,0.00018867,2]
[387833278,1758906633444,-209.40437684,0.00018889,2]
[387833280,1758906633454,-8260.13072239,0.00018889,2]
[387833282,1758906633464,-150.0,0.00019,2]
[387833284,1758906633473,-150.0,0.00019,2]
[387833286,1758906633483,-300.0,0.000193,7]
[387833288,1758906633493,-473.18,0.000193,2]
[387833291,1758906633503,-700.0,0.000194,7]
[387833293,1758906633513,-150.0,0.0001947,2]
[387833295,1758906633522,-166.67,0.00019489,2]
[387833297,1758906633532,-1100.0,0.000195,7]
[387833299,1758906633541,-780.10919291,0.0001952,2]
[387833301,1758906633551,-1500.0,0.000196,7]
[387833303,1758906633561,-222.0,0.00019654,2]
[387833305,1758906633571,-1800.0,0.000197,7]
[387833307,1758906633581,-176.52005737,0.000197,2]
[387833309,1758906633591,-780.10919292,0.00019771,2]
[387833311,1758906633601,-322.6107,0.00019788,2]
[387833313,1758906633611,-1870.88327,0.000198,2]
[387833315,1758906633622,-300.0,0.000198,7]
[387833317,1758906633632,-222.0,0.0001981,2]
[387833319,1758906633642,-150.0,0.00019821,2]
[387833321,1758906633651,-168.0,0.00019839,2]
[387833323,1758906633661,-1091.90931859,0.00019856,2]
[387833325,1758906633671,-1583.0,0.00019857,2]
[387833327,1758906633681,-814.0,0.00019857,2]
[387833329,1758906633691,-728.0,0.00019857,2]
[387833331,1758906633701,-4179.0,0.00019857,2]
[387833333,1758906633711,-18905.0,0.00019857,2]
[387833335,1758906633721,-680.2773,0.00019863,2]
[387833337,1758906633731,-1000.0,0.0001989,2]
[387833339,1758906633742,-323.36182035,0.00019899,2]
[387833341,1758906633752,-1530.1285,0.000199,2]
[387833343,1758906633762,-1163.164,0.000199,2]
[387833345,1758906633773,-5000.0,0.000199,2]
[387833347,1758906633788,-211.24413862,0.000199,2]
[387833349,1758906633798,-410.51605343,0.000199,2]
[387833351,1758906633809,-300.0,0.000199,7]
[387833353,1758906633825,-2056.925,0.0001991,2]
[387833355,1758906633837,-216.404,0.00019913,2]
[387833357,1758906633858,-500.0,0.00019973,2]
[387833359,1758906633874,-500.0,0.00019973,2]
[387833361,1758906633883,-500.0,0.00019973,2]
[387833369,1758906634058,-174.22725157,0.00019973,2]
[387833373,1758906634124,-500.0,0.00019973,2]
[387833374,1758906634134,-500.0,0.00019973,2]
[387833375,1758906634144,-500.0,0.00019973,2]
[387833376,1758906634154,-500.0,0.00019973,2]
[387833377,1758906634164,-369.27266219,0.00019973,2]
[387833378,1758906634174,-500.0,0.00019973,2]
[387833379,1758906634183,-500.0,0.00019973,2]
[387833380,1758906634194,-500.0,0.00019973,2]
[387833381,1758906634203,-500.0,0.00019973,2]
[387833382,1758906634212,-500.0,0.00019973,2]
[387833383,1758906634222,-500.0,0.00019973,2]
[387833384,1758906634231,-500.0,0.00019973,2]
[387833385,1758906634241,-500.0,0.00019973,2]
[387833386,1758906634251,-500.0,0.00019973,2]
[387833387,1758906634260,-157.26,0.00019973,2]
[387833388,1758906634269,-222.0,0.00019986,2]
[387833389,1758906634279,-156.78,0.00019989,2]
[387833390,1758906634287,-2623.37,0.00019989,2]
[387833391,1758906634297,-2623.37,0.0001999,2]
[387833392,1758906634306,-150.141,0.0001999,2]
[387833393,1758906634316,-150.161,0.0001999,2]
[387833394,1758906634325,-150.0,0.0001999,2]
[387833395,1758906634334,-161.026,0.0001999,2]
[387833396,1758906634344,-208.309,0.0001999,2]
[387833397,1758906634353,-250.0,0.0001999,2]
[387833398,1758906634363,-214.646,0.0001999,2]
[387833399,1758906634372,-158.0,0.0001999,2]
[387833400,1758906634382,-3396.0,0.0001999,2]
[387833401,1758906634391,-2043.0,0.0001999,2]
[387833402,1758906634400,-569.0,0.0001999,2]
[387833403,1758906634410,-603.0,0.0001999,2]
[387833404,1758906634419,-1305.0,0.0001999,2]
[387833405,1758906634430,-176.36211648,0.0001999,2]
[387833406,1758906634439,-176.36211648,0.0001999,2]
[387833407,1758906634449,-176.36211648,0.0001999,2]
[387833408,1758906634459,-293.79088169,0.00019997,2]
[387833409,1758906634468,-5000.0,0.00019998,2]
[387833410,1758906634477,-300.0,0.00019999,2]
[387833411,1758906634487,-300.0,0.00019999,2]
[387833412,1758906634496,-38879.27271531,0.00019999,2]
[387833413,1758906635036,-574.07038451,0.00019999,2]
[387833414,1758906635112,-70220.70013968,0.00019999,2]
[387833415,1758906635121,-65228.1344121,0.00019999,2]
[387833416,1758906635131,-500.0,0.00019999,2]
[387833417,1758906635141,-150.0,0.00019999,2]
[387833418,1758906635150,-150.0,0.00019999,2]
[387833419,1758906635159,-966.4109554,0.00019999,2]
[387833420,1758906635168,-5000.0,0.00019999,2]
[387833421,1758906635178,-150.0,0.00019999,2]
[387833422,1758906635187,-150.0,0.00019999,2]
[387833423,1758906635196,-150.0,0.00019999,2]
[387833424,1758906635205,-150.0,0.00019999,2]
[387833425,1758906635215,-150.0,0.00019999,2]
[387833426,1758906635224,-150.0,0.00019999,2]
[387833427,1758906635234,-150.0,0.00019999,2]
[387833428,1758906635243,-500.0,0.00019999,2]
[387833429,1758906635252,-500.0,0.00019999,2]
[387833430,1758906635261,-150.0,0.00019999,2]
[387833431,1758906635270,-150.0,0.00019999,2]
[387833432,1758906635280,-1283.0,0.00019999,2]
[387833433,1758906635289,-150.0,0.00019999,2]
[387833434,1758906635299,-150.0,0.00019999,2]
[387833435,1758906635308,-500.0,0.00019999,2]
[387833436,1758906635316,-500.0,0.00019999,2]
[387833437,1758906635326,-150.0,0.00019999,2]
[387833438,1758906635335,-1000.0,0.00019999,2]
[387833439,1758906635344,-500.0,0.00019999,2]
[387833440,1758906635354,-150.0,0.00019999,2]
[387833441,1758906635367,-962.0,0.00019999,2]
[387833442,1758906635376,-500.0,0.00019999,2]
[387833443,1758906635385,-150.0,0.00019999,2]
[387833444,1758906635394,-221.38856428,0.00019999,2]
[387833445,1758906635403,-1000.0,0.00019999,2]
[387833446,1758906635413,-500.0,0.00019999,2]
[387833447,1758906635422,-500.0,0.00019999,2]
[387833448,1758906635431,-150.0,0.00019999,2]
[387833449,1758906635440,-150.0,0.00019999,2]
[387833450,1758906635450,-150.0,0.00019999,2]
[387833451,1758906635459,-150.0,0.00019999,2]
[387833452,1758906635468,-150.0,0.00019999,2]
[387833453,1758906635478,-535.0,0.0002,2]
[387833454,1758906635487,-5716.07242129,0.0002,2]
[387833455,1758906635499,-5585.48885753,0.0002,2]
[387833456,1758906635508,-17867.29983435,0.0002,2]
[387833457,1758906635570,-4340.38909853,0.0002,2]
[387833612,1758906640275,-1268.88324907,0.00019857,2]
[387833613,1758906640307,-882.6808005,0.00019857,2]
[387833614,1758906640318,-1187.88,0.00019857,2]
[387833615,1758906640329,-2888.55595043,0.00019857,2]
[387833616,1758906640339,-500.0,0.00019999,2]
[387833617,1758906640348,-4292.72089089,0.0002,2]
[387833618,1758906640630,-865.44607721,0.0002,2]
[387833619,1758906642433,-6640.7124278,0.0002,2]
[387833620,1758906642445,-441.535,0.0002,2]
[387833621,1758906642507,-24104.6103854,0.0002,2]
[387833626,1758906642584,-3841.43481153,0.0002,2]
[387833630,1758906642629,-294.76361626,0.0002,2]
[387833631,1758906642672,-239496.5421867,0.0002,2]
[387833632,1758906642682,-990819.75252223,0.0002,2]
[387833633,1758906642693,-583.20783162,0.0002,2]
[387833634,1758906642705,-4049.999998,0.0002,2]
[387833635,1758906642716,-664.7928,0.0002,2]
[387833636,1758906642728,-799.40619,0.0002,2]
[387833637,1758906642742,-1689.03252,0.0002,2]
[387833643,1758906643093,-284.584502,0.0002,2]
[387833644,1758906643143,-400.0,0.0002,2]
[387833645,1758906643155,-67796.49281029,0.0002,2]
[387833670,1758906646346,-756.0,0.00019999,2]
[387833671,1758906646355,-18456.10385836,0.0002,2]
[387833672,1758906646366,-4633.03051438,0.0002,2]
[387833673,1758906646574,-600.3697541,0.0002,2]
[387833674,1758906646590,-1217.01889558,0.0002,2]
[387833675,1758906648383,-899.0,0.00019857,2]
[387833676,1758906648392,-20442.34411525,0.0002,2]
[387833677,1758906648442,-666.56055095,0.0002,2]
[387833678,1758906648453,-739.59933752,0.0002,2]
[387833683,1758906777884,158.40058675,0.000185,2]
[387833684,1758906817891,151.867876,0.00018402,2]
[387833685,1758906818193,151.867876,0.00018156,2]
[387833686,1758906818379,151.867876,0.00017909,2]
[387833687,1758906818572,151.867876,0.00017897,2]
[387833688,1758906819160,151.867876,0.00017857,2]
[387833689,1758906819412,151.867876,0.00017852,2]
[387833690,1758906821662,151.322531,0.00018156,2]
[387833691,1758906824899,158.105283,0.00018156,2]
[387833701,1758907135483,150.0,0.00018,2]
[387833703,1758907171115,154.51,9.421e-05,2]
[387833704,1758907192878,153.10992471,0.00018485,20]
[387833706,1758907513210,150.0,0.00018,2]
[387833707,1758907513452,208.51670564,0.00018,2]
[387833708,1758907514434,150.0,0.00018,2]
[387833713,1758907659276,15702.97225471,0.000185,2]
[387833714,1758907664139,150.0,0.00017,2]
[387833715,1758907664386,150.0,0.0001818,2]
[387833718,1758907675841,295.27245785,0.00018,2]
[387833721,1758907694029,4382.39555811,0.0001439,2]
[387833741,1758907726400,19520.59201575,0.00015,2]
[387833937,1758907833052,-225.49,0.00018639,2]
[387833939,1758907833063,-212.05905257,0.00018792,2]
[387833969,1758907833685,-37.94094743,0.00018792,2]
[387833970,1758907833694,-497.07,0.00018945,2]
[387833971,1758907833704,-82.59573235,0.00018985,2]
[387833972,1758907833717,-92.40426765,0.00018985,2]
[387833973,1758907833727,-300.0,0.00018986,2]
[387833974,1758907833737,-1200.0,0.00018986,2]
[387833975,1758907833746,-357.46653693,0.00018987,2]
[387833976,1758907833755,-500.0,0.00018987,2]
[387833977,1758907833765,-500.0,0.00018987,2]
[387833978,1758907833774,-500.0,0.00018987,2]
[387833979,1758907833783,-309.14286225,0.00018987,2]
[387833980,1758907833792,-500.0,0.00018987,2]
[387833981,1758907833802,-500.0,0.00018987,2]
[387833982,1758907833811,-500.0,0.00018987,2]
[387833983,1758907833820,-500.0,0.00018987,2]
[387833984,1758907833830,-1017.0,0.00018993,2]
[387833985,1758907833839,-209.40437684,0.00018999,2]
[387833986,1758907833849,-4659.12466102,0.00019,2]
[387833987,1758907833860,-150.0,0.00019004,7]
[387833988,1758907833870,-184.54,0.00019035,2]
[387833989,1758907833880,-151.0,0.00019178,2]
[387833990,1758907833890,-168.0,0.00019195,2]
[387833991,1758907833900,-168.0,0.00019283,2]
[387833992,1758907833909,-844.17,0.00019339,2]
[387833993,1758907833919,-16625.75,0.00019339,2]
[387833994,1758907833929,-3754.74,0.00019339,2]
[387833995,1758907833939,-150.99,0.00019339,2]
[387833996,1758907833949,-6390.59,0.00019339,2]